bitfinex/quotes_SOLUSD_20250822
["timestamp","ask_amount","ask_price","bid_price","bid_amount"]
[1755887339412,0.2,196.73,196.72,9.89402622]
[1755887340198,0.2,196.73,196.72,9.23402622]
[1755887340505,0.2,196.73,196.72,9.23427799]
[1755887340873,0.88,196.73,196.72,3.79942327]
[1755887341682,0.88,196.73,196.72,9.23427799]
[1755887341683,0.2,196.73,196.72,9.23427799]
[1755887342386,0.88,196.73,196.72,3.79942327]
[1755887344794,0.88,196.73,196.72,9.23427799]
[1755887345598,0.2,196.73,196.72,9.23814293]
[1755887346267,0.88,196.73,196.72,9.23814293]
[1755887346977,0.2,196.73,196.72,9.23814293]
[1755887347172,0.88,196.73,196.72,9.23814293]
[1755887350170,0.88,196.73,196.72,3.80328821]
[1755887350564,14.75991715,196.73,196.72,3.80328821]
[1755887350793,20.19477187,196.73,196.72,3.80328821]
[1755887351101,20.19477187,196.73,196.72,2.24328821]
[1755887351470,20.19477187,196.73,196.7,0.03]
[1755887351670,19.31477187,196.71,196.7,0.03]
[1755887352164,19.89477187,196.71,196.7,0.03]
[1755887352364,45.89477187,196.71,196.7,0.03]
[1755887353409,19.89477187,196.71,196.7,0.03]
[1755887353572,19.89477187,196.71,196.67,0.03]
[1755887353573,0.28432314,196.68,196.67,0.03]
[1755887353772,72.19714747,196.68,196.67,0.03]
[1755887354079,76.82961895,196.68,196.67,0.03]
[1755887354281,78.86705695,196.68,196.67,0.03]
[1755887354479,78.85859284,196.68,196.67,0.03]
[1755887355001,20.28382864,196.68,196.67,0.03]
[1755887355180,63.69220987,196.68,196.67,0.03]
[1755887355384,16.49735515,196.68,196.67,0.03]
[1755887355584,63.69220987,196.68,196.67,0.03]
[1755887356004,67.47657007,196.68,196.67,0.03]
[1755887356205,63.69220987,196.68,196.67,0.03]
[1755887358686,58.25735515,196.68,196.67,0.03]
[1755887358881,63.69220987,196.68,196.67,0.03]
[1755887359287,21.93220987,196.68,196.67,0.03]
[1755887359496,63.69220987,196.68,196.67,0.03]
[1755887359690,63.11220987,196.68,196.67,0.03]
[1755887361206,13.87991715,196.68,196.67,0.03]
[1755887361505,55.49775558,196.68,196.67,0.03]
[1755887361708,13.87991715,196.68,196.67,0.03]
[1755887362006,55.35559401,196.68,196.67,0.69]
[1755887362309,55.63991715,196.68,196.67,0.69]
[1755887362987,55.63991715,196.68,196.67,0.03]
[1755887363188,61.65477187,196.68,196.67,0.03]
[1755887363576,64.30777006,196.68,196.67,0.03]
[1755887364106,63.72777006,196.68,196.67,0.03]
[1755887364287,16.53291534,196.68,196.67,0.03]
[1755887364695,58.27291534,196.68,196.67,0.03]
[1755887365311,16.53291534,196.68,196.67,0.03]
[1755887365493,58.29291534,196.68,196.67,0.03]
[1755887365803,63.72777006,196.68,196.67,0.03]
[1755887366305,64.30777006,196.68,196.67,0.03]
[1755887366883,63.72777006,196.68,196.67,0.03]
[1755887369484,58.29291534,196.68,196.67,0.03]
[1755887369685,63.72777006,196.68,196.67,0.03]
[1755887370506,58.29291534,196.68,196.67,0.7]
[1755887371307,58.29291534,196.68,196.67,0.03]
[1755887371500,63.70777006,196.68,196.67,0.03]
[1755887372101,58.27291534,196.68,196.67,0.7]
[1755887372300,41.72,196.68,196.67,0.7]
[1755887372709,26.0,196.7,196.67,6.13485472]
[1755887372710,13.59559401,196.69,196.67,6.13485472]
[1755887373010,41.72,196.68,196.67,5.46485472]
[1755887373627,41.72,196.68,196.67,6.13485472]
[1755887374128,41.72,196.69,196.67,6.13485472]
[1755887374314,41.72,196.69,196.68,5.43485472]
[1755887374494,41.72,196.69,196.68,6.10485472]
[1755887375406,41.72,196.69,196.68,0.67]
[1755887375604,41.72,196.69,196.68,6.10485472]
[1755887376824,41.72,196.69,196.67,0.03]
[1755887377118,47.15485472,196.69,196.67,0.03]
[1755887377520,41.72,196.69,196.67,0.03]
[1755887379110,41.72,196.69,196.67,0.7]
[1755887380220,41.72,196.69,196.67,0.03]
[1755887380529,41.72,196.69,196.67,0.7]
[1755887380939,0.28432314,196.71,196.68,6.10485472]
[1755887381103,0.28432314,196.71,196.69,0.67]
[1755887381308,55.57991715,196.7,196.69,0.67]
[1755887381513,41.7,196.7,196.69,0.67]
[1755887382121,41.7,196.7,196.67,0.7]
[1755887382299,41.7,196.7,196.68,6.10485472]
[1755887382516,41.7,196.7,196.69,0.67]
[1755887382834,41.68,196.7,196.69,6.10485472]
[1755887383725,41.68,196.7,196.69,0.67]
[1755887383930,41.68,196.7,196.67,0.03]
[1755887384110,13.73775558,196.69,196.67,0.03]
[1755887384306,41.68,196.68,196.67,0.03]
[1755887390436,41.68,196.68,196.67,0.7]
[1755887390631,0.20216157,196.71,196.67,6.13485472]
[1755887390935,41.66,196.7,196.69,5.43485472]
[1755887391445,41.66,196.7,196.69,0.67]
[1755887391927,41.66,196.7,196.67,0.7]
[1755887392117,41.66,196.7,196.67,6.13485472]
[1755887392631,41.66,196.7,196.68,3.7983648]
[1755887392832,41.66,196.7,196.67,6.13485472]
[1755887393039,41.66,196.7,196.68,3.79836388]
[1755887393218,41.66,196.7,196.67,0.7]
[1755887393409,41.66,196.7,196.68,3.7998656]
[1755887393614,42.24,196.7,196.67,0.03]
[1755887393834,13.87991715,196.69,196.67,0.03]
[1755887394046,60.97477187,196.68,196.67,0.03]
[1755887394246,56.11991715,196.68,196.67,0.03]
[1755887394414,63.59189887,196.68,196.67,0.03]
[1755887394920,66.24506628,196.68,196.67,0.03]
[1755887396117,65.66506628,196.68,196.67,0.03]
[1755887396312,18.57021156,196.68,196.67,0.03]
[1755887396517,58.17308456,196.68,196.67,6.13485472]
[1755887396739,57.88876142,196.68,196.67,0.03]
[1755887397040,58.03092299,196.68,196.67,0.03]
[1755887397239,58.17308456,196.68,196.67,0.03]
[1755887398959,64.18793928,196.68,196.67,0.03]
[1755887399330,58.17308456,196.68,196.67,0.03]
[1755887399726,58.23308456,196.68,196.67,0.03]
[1755887400425,44.35316741,196.68,196.67,6.12485472]
[1755887400941,0.06,196.68,196.67,6.12485472]
[1755887401155,0.06,196.68,196.67,5.46485472]
[1755887401330,0.06,196.68,196.67,6.12485472]
[1755887402161,0.06,196.68,196.67,9.93004431]
[1755887403855,0.06,196.68,196.67,4.49518959]
[1755887404060,0.06,196.68,196.67,9.93004431]
[1755887404357,41.68,196.68,196.67,9.93004431]
[1755887404557,41.68,196.68,196.67,4.49518959]
[1755887404862,41.68,196.68,196.67,9.93004431]
[1755887405049,41.68,196.68,196.67,3.83518959]
[1755887405256,55.55991715,196.68,196.67,3.83518959]
[1755887405819,0.06,196.68,196.67,9.93004431]
[1755887406057,41.68,196.68,196.67,4.49518959]
[1755887406470,0.06,196.68,196.67,9.93004431]
[1755887408140,0.06,196.68,196.67,6.12485472]
[1755887408460,0.06,196.68,196.67,9.93029679]
[1755887409038,0.06,196.68,196.67,15.36515151]
[1755887409439,0.06,196.68,196.67,9.93029679]
[1755887410637,0.06,196.68,196.67,9.27029679]
[1755887410934,0.06,196.68,196.67,3.83544207]
[1755887413046,0.06,196.68,196.67,4.49544207]
[1755887413241,0.06,196.68,196.67,3.83544207]
[1755887413444,0.06,196.68,196.67,9.93029679]
[1755887413747,0.06,196.68,196.67,3.83544207]
[1755887415242,0.06,196.68,196.67,9.93029679]
[1755887416353,0.06,196.68,196.67,15.36515151]
[1755887417255,0.06,196.7,196.69,26.0]
[1755887417554,0.06,196.71,196.69,35.24034733]
[1755887417756,0.06,196.71,196.7,4.46549261]
[1755887417937,0.06,196.72,196.7,9.90034733]
[1755887418137,0.2,196.73,196.71,9.90034733]
[1755887418339,0.2,196.73,196.72,9.24034733]
[1755887418569,0.2,196.73,196.72,9.90034733]
[1755887418866,0.2,196.77,196.75,26.0]
[1755887419172,0.2,196.77,196.76,9.24034733]
[1755887419463,0.2,196.77,196.76,9.90034733]
[1755887420446,0.2,196.77,196.76,9.89115378]
[1755887420767,51.92754015,196.82,196.76,15.3260085]
[1755887420957,10.36754015,196.82,196.79,10.86970944]
[1755887421160,10.36754015,196.82,196.79,15.3260085]
[1755887421365,10.36754015,196.82,196.79,9.89115378]
[1755887421976,10.36754015,196.82,196.79,3.79629906]
[1755887422163,10.36754015,196.82,196.79,9.23115378]
[1755887423461,10.36754015,196.82,196.79,9.89115378]
[1755887424677,41.54,196.81,196.79,5.43485472]
[1755887424846,41.54,196.81,196.79,3.78779503]
[1755887425051,41.54,196.81,196.79,5.43485472]
[1755887425252,41.54,196.81,196.79,9.22146726]
[1755887425861,41.54,196.81,196.79,9.88146726]
[1755887426271,41.54,196.81,196.79,6.09485472]
[1755887426974,249.5,196.8,196.79,6.09485472]
[1755887427778,249.5,196.8,196.79,9.87877576]
[1755887428856,249.5,196.8,196.79,9.21751909]
[1755887429265,249.5,196.8,196.79,9.21650918]
[1755887429469,249.5,196.8,196.79,9.92650918]
[1755887429672,249.5,196.8,196.79,9.21650918]
[1755887429876,249.5,196.8,196.79,9.92650918]
[1755887430053,249.5,196.8,196.79,15.3613639]
[1755887430760,249.0,196.8,196.79,15.3613639]
[1755887431279,168.18742761,196.8,196.79,41.3613639]
[1755887431475,168.18742761,196.8,196.79,15.3613639]
[1755887432149,168.18742761,196.8,196.79,4.49165446]
[1755887432351,168.18742761,196.8,196.79,15.3613639]
[1755887432952,168.24742761,196.8,196.79,3.78165446]
[1755887433150,168.24742761,196.8,196.79,9.21031358]
[1755887433348,168.24742761,196.8,196.79,9.92031358]
[1755887433878,168.24742761,196.8,196.79,15.3551683]
[1755887434378,168.24742761,196.8,196.79,13.03429912]
[1755887435056,168.24742761,196.8,196.79,3.77545886]
[1755887435354,168.24742761,196.8,196.79,12.32429912]
[1755887435552,168.24742761,196.8,196.79,13.03157137]
[1755887437288,67.68067086,196.8,196.79,63.06041163]
[1755887438265,67.68067086,196.8,196.79,45.25273111]
[1755887438456,67.68067086,196.8,196.79,54.51157137]
[1755887438978,67.68067086,196.8,196.79,12.32157137]
[1755887439477,67.68067086,196.8,196.79,13.03157137]
[1755887439796,67.68067086,196.8,196.79,4.48273111]
[1755887439964,67.68067086,196.8,196.79,13.03157137]
[1755887440364,67.68067086,196.8,196.79,28.29059337]
[1755887441667,67.68067086,196.8,196.79,89.19059337]
[1755887441987,0.06,196.82,196.79,89.19059337]
[1755887442178,0.06,196.82,196.81,34.54884026]
[1755887442402,0.06,196.82,196.81,79.78157137]
[1755887442690,0.06,196.82,196.81,12.32157137]
[1755887443095,0.06,196.82,196.81,8.54884026]
[1755887443255,0.06,196.82,196.81,12.31703716]
[1755887443658,0.06,196.82,196.81,3.76871885]
[1755887443871,0.16,196.82,196.81,12.31755911]
[1755887444862,0.06,196.82,196.81,12.31755911]
[1755887445080,0.64,196.82,196.81,12.31755911]
[1755887445271,0.06,196.82,196.81,12.31755911]
[1755887445962,0.06,196.82,196.81,3.76871885]
[1755887446162,0.64,196.82,196.81,12.31755911]
[1755887446368,0.06,196.82,196.81,12.31755911]
[1755887447005,0.06,196.82,196.81,3.76871885]
[1755887447178,0.64,196.82,196.81,3.76871885]
[1755887447365,0.64,196.82,196.81,12.31755911]
[1755887447681,0.64,196.82,196.81,3.76871885]
[1755887448486,42.08,196.82,196.77,8.54884026]
[1755887448685,0.58,196.81,196.78,12.32211521]
[1755887448885,0.06,196.82,196.8,8.54884026]
[1755887449093,0.06,196.82,196.81,12.32211521]
[1755887449801,0.06,196.82,196.81,13.03211521]
[1755887450161,0.06,196.82,196.81,13.03296943]
[1755887450590,0.06,196.82,196.81,8.54884026]
[1755887450763,0.06,196.82,196.81,12.32402742]
[1755887451092,0.06,196.82,196.81,12.32453809]
[1755887451796,0.06,196.82,196.81,13.03453809]
[1755887454286,0.06,196.82,196.81,38.32453809]
[1755887455714,0.06,196.82,196.81,39.03453809]
[1755887456212,0.06,196.82,196.81,38.32453809]
[1755887457188,0.06,196.82,196.81,29.77569783]
[1755887457695,0.06,196.82,196.81,38.32453809]
[1755887458067,0.06,196.82,196.81,3.77569783]
[1755887458282,0.06,196.82,196.81,12.32453809]
[1755887459487,0.06,196.82,196.81,12.3372831]
[1755887460490,0.06,196.82,196.81,3.78844284]
[1755887460683,0.64,196.82,196.81,3.78844284]
[1755887460887,9.18884026,196.82,196.81,3.78844284]
[1755887461076,23.06875741,196.82,196.81,3.78844284]
[1755887461482,14.51991715,196.82,196.81,3.79726935]
[1755887461703,0.06,196.82,196.79,8.57884026]
[1755887461905,0.64,196.82,196.79,8.57884026]
[1755887462103,0.06,196.82,196.79,9.26884026]
[1755887462288,0.06,196.82,196.79,5.4585322]
[1755887462603,0.06,196.82,196.81,5.4285322]
[1755887464076,0.06,196.82,196.81,6.1185322]
[1755887464405,6.0085322,196.87,196.81,9.24108786]
[1755887464406,0.72216157,196.87,196.81,9.24108786]
[1755887464587,41.98,196.87,196.82,8.55108786]
[1755887464788,0.78,196.91,196.86,8.55108786]
[1755887464987,41.6,196.91,196.86,8.55108786]
[1755887465298,42.18,196.91,196.87,8.55108786]
[1755887465479,0.2,196.91,196.9,8.55108786]
[1755887467509,0.2,196.91,196.9,9.24108786]
[1755887467803,0.2,196.91,196.9,13.03184003]
[1755887470211,0.2,196.91,196.9,4.48075217]
[1755887470511,0.2,196.91,196.9,3.79075217]
[1755887470804,0.2,196.91,196.9,12.34091623]
[1755887471503,0.2,196.91,196.9,3.78982837]
[1755887473628,0.2,196.91,196.9,12.34091623]
[1755887473915,0.2,196.91,196.9,13.03091623]
[1755887475612,0.2,196.91,196.9,4.47982837]
[1755887475813,0.2,196.91,196.9,12.34091623]
[1755887476187,0.2,196.91,196.9,3.78982837]
[1755887476606,0.2,196.91,196.9,3.78849741]
[1755887477209,0.2,196.91,196.9,3.78762898]
[1755887477394,0.2,196.91,196.9,3.78716013]
[1755887478318,0.78,196.91,196.9,3.78716013]
[1755887478691,0.78,196.91,196.87,8.55108786]
[1755887478912,0.78,196.91,196.88,3.7874059]
[1755887479096,0.58,196.9,196.89,3.7874059]
[1755887479510,14.45991715,196.9,196.84,8.55108786]
[1755887479723,23.01100501,196.9,196.85,3.78689372]
[1755887479934,0.58,196.89,196.86,3.78689372]
[1755887480113,0.58,196.89,196.87,3.78689372]
[1755887480421,9.13108786,196.88,196.83,8.55108786]
[1755887480722,0.58,196.87,196.84,3.78663686]
[1755887480893,14.17559401,196.89,196.85,3.78663686]
[1755887481226,22.72668187,196.89,196.86,3.78663686]
[1755887481427,13.59559401,196.89,196.87,3.78663686]
[1755887481615,41.56,196.91,196.88,3.78662859]
[1755887481812,0.2,196.91,196.88,9.24108786]
[1755887482009,0.2,196.91,196.89,3.78582682]
[1755887482332,0.78,196.91,196.85,0.69]
[1755887482633,0.2,196.91,196.87,8.55108786]
[1755887482800,0.2,196.91,196.88,3.78578616]
[1755887483003,0.78,196.91,196.87,8.55108786]
[1755887483231,0.78,196.91,196.88,3.78609713]
[1755887483433,0.78,196.91,196.87,8.55108786]
[1755887483815,0.78,196.91,196.88,3.78419821]
[1755887484017,0.78,196.91,196.89,3.78419821]
[1755887484312,9.33108786,196.91,196.86,8.58108786]
[1755887484506,9.33108786,196.91,196.87,3.78383134]
[1755887484710,8.75108786,196.91,196.88,3.78383134]
[1755887484904,8.75108786,196.91,196.89,3.7839185]
[1755887484905,0.2,196.91,196.89,3.7839185]
[1755887485112,0.2,196.91,196.88,0.69]
[1755887485431,0.2,196.91,196.89,3.78423483]
[1755887485737,0.2,196.91,196.89,0.69]
[1755887486107,0.2,196.91,196.9,3.7839462]
[1755887486301,0.2,196.91,196.9,3.78352903]
[1755887486510,0.2,196.91,196.87,9.24108786]
[1755887486805,0.2,196.91,196.88,3.78291563]
[1755887487027,0.2,196.91,196.89,3.78291563]
[1755887487330,0.2,196.91,196.87,9.24108786]
[1755887487516,0.2,196.91,196.88,3.78161382]
[1755887487718,41.54,196.91,196.89,3.78161382]
[1755887487918,0.58,196.9,196.86,8.58108786]
[1755887488239,50.47108786,196.9,196.87,3.78192777]
[1755887488526,46.76590321,196.9,196.86,0.03]
[1755887488727,46.76590321,196.9,196.87,3.78209518]
[1755887488919,41.34,196.9,196.86,0.03]
[1755887489129,41.34,196.9,196.87,4.47305301]
[1755887489432,41.34,196.9,196.88,3.78305301]
[1755887489605,19.88582036,196.89,196.86,0.03]
[1755887489805,14.45991715,196.89,196.87,3.78270951]
[1755887490006,41.34,196.89,196.88,3.7818812]
[1755887491536,22.62750493,196.91,196.88,3.7818812]
[1755887491853,41.34,196.89,196.88,0.69]
[1755887492017,0.2,196.91,196.88,3.78267351]
[1755887492212,41.32,196.9,196.89,3.78267351]
[1755887493030,41.32,196.9,196.87,8.54758778]
[1755887493345,41.32,196.9,196.87,0.69]
[1755887493513,41.32,196.9,196.88,3.7832321]
[1755887493712,41.32,196.9,196.89,3.7832321]
[1755887494528,0.2,196.91,196.89,13.02081988]
[1755887494837,0.2,196.91,196.9,13.02081988]
[1755887495038,0.2,196.91,196.9,9.23758778]
[1755887495218,0.2,196.91,196.9,13.02097274]
[1755887495637,0.2,196.91,196.9,13.02041883]
[1755887497345,0.2,196.91,196.9,4.47283105]
[1755887497816,0.2,196.91,196.9,13.02041883]
[1755887498252,0.2,196.91,196.9,13.02063372]
[1755887498737,0.2,196.91,196.9,4.47304594]
[1755887499037,0.2,196.91,196.9,13.02063372]
[1755887500850,0.06,196.93,196.91,13.59559401]
[1755887501048,0.06,196.93,196.92,12.33063372]
[1755887501241,0.06,196.93,196.92,54.32063372]
[1755887502049,0.06,196.93,196.92,13.02063372]
[1755887502850,0.06,196.93,196.92,38.33063372]
[1755887503426,0.06,196.93,196.92,39.02063372]
[1755887504038,0.06,196.93,196.92,35.23758778]
[1755887504347,0.06,196.93,196.92,39.01849041]
[1755887504546,0.06,196.93,196.92,35.23758778]
[1755887504735,0.06,196.93,196.92,38.32809843]
[1755887505239,0.06,196.93,196.92,39.01809843]
[1755887507125,0.06,196.93,196.92,30.47051065]
[1755887507443,0.06,196.93,196.92,39.01809843]
[1755887509169,0.06,196.93,196.92,38.32809843]
[1755887509543,0.06,196.93,196.92,12.32809843]
[1755887509878,0.06,196.93,196.92,3.78051065]
[1755887510024,9.18758778,196.93,196.92,3.78051065]
[1755887510231,0.64,196.93,196.92,3.78051065]
[1755887511046,0.06,196.93,196.92,3.78051065]
[1755887512470,0.64,196.93,196.92,3.78051065]
[1755887512758,9.18758778,196.93,196.92,3.78051065]
[1755887512941,23.06750493,196.93,196.92,3.78051065]
[1755887513141,23.06750493,196.93,196.86,0.03]
[1755887513347,8.54758778,196.91,196.87,3.78684322]
[1755887513542,8.54758778,196.91,196.88,3.78684322]
[1755887513724,0.58,196.9,196.89,3.78722875]
[1755887513930,9.12758778,196.9,196.89,3.78722875]
[1755887514149,0.58,196.9,196.89,3.78722875]
[1755887514553,6.00563691,196.9,196.89,3.78722875]
[1755887515627,0.58,196.9,196.89,3.78722875]
[1755887515858,6.00563691,196.9,196.89,3.78722875]
[1755887516443,6.00563691,196.9,196.89,3.78649687]
[1755887517248,19.88555406,196.9,196.89,3.78649687]
[1755887517454,13.59559401,196.89,196.86,0.03]
[1755887517760,0.28432314,196.88,196.87,3.81825487]
[1755887517943,14.45991715,196.88,196.87,3.81825487]
[1755887518144,13.87991715,196.88,196.87,3.81825487]
[1755887519146,19.30555406,196.88,196.87,3.81825487]
[1755887520660,13.87991715,196.88,196.87,3.81825487]
[1755887520868,19.30555406,196.88,196.87,3.81825487]
[1755887521360,19.30555406,196.88,196.87,0.03]
[1755887521541,19.88555406,196.88,196.87,3.81768785]
[1755887521941,19.88555406,196.88,196.87,0.03]
[1755887522493,13.87991715,196.87,196.86,0.03]
[1755887522672,39.59559401,196.84,196.83,0.03]
[1755887522868,86.54555406,196.84,196.83,0.03]
[1755887523166,87.09555406,196.84,196.83,0.03]
[1755887523475,81.66991715,196.84,196.83,0.03]
[1755887523654,87.09555406,196.84,196.83,0.03]
[1755887524249,86.54555406,196.84,196.83,0.03]
[1755887524459,41.24,196.84,196.83,0.03]
[1755887524970,41.24,196.84,196.83,3.81323293]
[1755887525468,13.59559401,196.87,196.83,9.90886984]
[1755887525673,0.55,196.9,196.84,9.87886984]
[1755887525674,41.24,196.86,196.84,9.87886984]
[1755887525855,41.24,196.86,196.84,0.67]
[1755887526258,41.24,196.86,196.83,8.58060832]
[1755887526457,41.24,196.86,196.84,3.77910528]
[1755887526760,41.24,196.86,196.85,3.77857578]
[1755887527152,41.24,196.86,196.85,3.77828001]
[1755887527354,41.24,196.86,196.85,3.77801126]
[1755887528474,41.24,196.86,196.85,3.77804184]
[1755887528883,41.24,196.86,196.85,4.44804184]
[1755887529268,13.87991715,196.9,196.85,12.99865016]
[1755887529475,13.87991715,196.9,196.88,8.55060832]
[1755887529476,41.22,196.9,196.88,8.55060832]
[1755887529794,49.77060832,196.9,196.85,0.67]
[1755887529953,41.22,196.9,196.86,3.77654832]
[1755887530153,49.77060832,196.9,196.87,3.77597209]
[1755887530485,41.22,196.9,196.86,8.55060832]
[1755887530778,41.22,196.9,196.87,3.77640644]
[1755887530983,41.22,196.9,196.85,8.55060832]
[1755887531183,41.22,196.9,196.86,3.7767108]
[1755887531379,41.22,196.9,196.87,3.7767108]
[1755887531557,41.22,196.9,196.85,9.22060832]
[1755887531877,41.22,196.9,196.86,3.77644129]
[1755887532093,41.22,196.9,196.83,0.03]
[1755887532094,8.55060832,196.88,196.83,8.58060832]
[1755887532392,13.59559401,196.88,196.84,3.77790465]
[1755887532591,0.83432314,196.89,196.87,8.55060832]
[1755887532592,41.22,196.89,196.87,8.55060832]
[1755887532755,41.22,196.89,196.87,0.67]
[1755887532954,41.22,196.89,196.87,9.22060832]
[1755887533170,41.22,196.89,196.87,0.67]
[1755887533365,41.22,196.89,196.84,0.67]
[1755887533562,41.22,196.89,196.85,4.44863993]
[1755887533859,41.22,196.89,196.86,12.35924825]
[1755887534081,41.22,196.89,196.87,3.77863993]
[1755887534290,41.22,196.89,196.86,8.58060832]
[1755887534480,41.22,196.89,196.86,0.03]
[1755887534884,41.22,196.89,196.86,8.58060832]
[1755887535056,41.22,196.89,196.86,9.25060832]
[1755887535577,41.22,196.89,196.86,0.7]
[1755887536172,41.22,196.89,196.86,0.03]
[1755887536485,22.69620233,196.88,196.86,0.03]
[1755887536988,14.14559401,196.88,196.86,0.03]
[1755887537158,8.55060832,196.87,196.86,0.03]
[1755887538464,14.14559401,196.88,196.86,0.03]
[1755887538652,8.55060832,196.87,196.86,0.03]
[1755887539880,22.14620233,196.88,196.86,0.03]
[1755887542986,22.98052547,196.87,196.86,0.03]
[1755887546363,13.87991715,196.87,196.86,0.03]
[1755887546563,75.73060832,196.87,196.86,0.03]
[1755887547602,64.16052547,196.87,196.86,0.03]
[1755887547895,63.61052547,196.87,196.86,0.03]
[1755887548263,60.48786093,196.87,196.86,0.03]
[1755887548464,61.03786093,196.87,196.86,0.03]
[1755887548868,57.09497115,196.87,196.86,0.03]
[1755887549073,62.52291493,196.87,196.86,0.03]
[1755887549274,60.48786093,196.87,196.86,0.03]
[1755887550174,63.13826784,196.87,196.86,0.03]
[1755887550818,57.71032406,196.87,196.86,0.03]
[1755887550963,63.13826784,196.87,196.86,0.03]
[1755887552097,63.68826784,196.87,196.86,0.03]
[1755887552674,16.53032406,196.87,196.86,0.7]
[1755887552872,16.38816249,196.87,196.86,0.7]
[1755887553099,16.38816249,196.87,196.86,0.03]
[1755887553100,57.54816249,196.87,196.86,0.03]
[1755887553393,63.11826784,196.87,196.86,3.81063385]
[1755887553600,63.11826784,196.87,196.86,0.03]
[1755887553798,57.54816249,196.87,196.86,0.7]
[1755887553988,43.81040691,196.87,196.86,4.48299385]
[1755887555182,2.65040691,196.87,196.86,4.48299385]
[1755887555406,43.81040691,196.87,196.86,4.48299385]
[1755887556784,2.65040691,196.87,196.86,4.48299385]
[1755887557003,43.81040691,196.87,196.86,4.48299385]
[1755887557670,43.81040691,196.87,196.86,0.7]
[1755887558180,43.81040691,196.87,196.86,4.48960069]
[1755887558786,43.81040691,196.87,196.86,9.91754447]
[1755887559510,43.81040691,196.87,196.86,4.48960069]
[1755887560918,43.81040691,196.87,196.86,4.489384]
[1755887562899,43.81040691,196.87,196.86,3.819384]
[1755887563504,43.81040691,196.87,196.86,4.489384]
[1755887564203,43.81040691,196.87,196.86,3.819384]
[1755887565309,43.81040691,196.87,196.86,4.489384]
[1755887565878,43.81040691,196.87,196.86,3.819384]
[1755887567085,43.81040691,196.87,196.86,3.82163758]
[1755887567706,43.81040691,196.87,196.86,4.49163758]
[1755887567910,2.71040691,196.87,196.86,9.91958136]
[1755887570101,2.71040691,196.87,196.86,9.9204514]
[1755887570610,0.06,196.87,196.86,9.9204514]
[1755887571515,0.06,196.87,196.86,70.8204514]
[1755887573986,0.06,196.9,196.89,26.0]
[1755887574187,0.06,196.9,196.89,40.64839518]
[1755887574716,0.06,196.9,196.89,3.79250762]
[1755887575893,0.06,196.9,196.87,5.42794378]
[1755887576101,0.06,196.9,196.88,3.7850197]
[1755887576308,0.06,196.9,196.89,3.7850197]
[1755887577000,6.09794378,196.9,196.89,3.7850197]
[1755887577221,19.97786093,196.9,196.89,3.7850197]
[1755887577727,14.54991715,196.9,196.89,3.7850197]
[1755887577898,19.97786093,196.9,196.89,3.7850197]
[1755887578098,19.97786093,196.9,196.86,0.03]
[1755887578294,41.1,196.89,196.86,0.03]
[1755887578693,46.52794378,196.89,196.86,0.03]
[1755887578891,41.1,196.89,196.87,0.67]
[1755887579829,41.1,196.89,196.87,6.09794378]
[1755887579998,41.1,196.89,196.86,0.03]
[1755887580202,41.1,196.89,196.87,3.78680677]
[1755887580401,41.1,196.89,196.88,3.78680677]
[1755887581003,41.1,196.89,196.88,9.21475055]
[1755887581204,41.1,196.89,196.88,3.78680677]
[1755887582418,0.06,196.9,196.88,3.78680677]
[1755887582617,0.06,196.9,196.89,9.88475055]
[1755887582797,0.06,196.9,196.89,9.21475055]
[1755887582999,0.06,196.9,196.89,9.88475055]
[1755887583214,0.06,196.9,196.89,15.31269433]
[1755887583425,0.06,196.9,196.89,9.88475055]
[1755887584000,0.06,196.9,196.89,15.31269433]